[Event "Titled Tuesday Blitz July 11 Late 2023"]
[White "Geske, Bruna"]
[Black "Sebag, Marie"]
[WhiteFideId "4701100"]
[BlackFideId "617822"]
[WhiteElo "1888"]
[BlackElo "2520"]
[Result "0-1"]
[Round "1"]
[TimeControl "180+2"]
[Date "2023.07.11"]
[WhiteClock "0:00:00"]
[BlackClock "0:00:59"]
[Board "193"]

1. e4 {[%clk 0:02:58]}  c5 {[%clk 0:02:58]} 2. Nf3 {[%clk 0:02:58]}  Nc6 {[%clk 0:02:58]} 3. Bb5 {[%clk 0:02:53]}  g6 {[%clk 0:02:56]} 4. c3 {[%clk 0:02:48]}  Nf6 {[%clk 0:02:54]} 5. Qe2 {[%clk 0:02:45]}  Bg7 {[%clk 0:02:35]} 6. O-O {[%clk 0:02:40]}  O-O {[%clk 0:02:34]} 7. h3 {[%clk 0:02:27]}  d5 {[%clk 0:02:20]} 8. e5 {[%clk 0:02:18]}  Nd7 {[%clk 0:02:20]} 9. d4 {[%clk 0:02:17]}  e6 {[%clk 0:02:17]} 10. Bg5 {[%clk 0:02:11]}  Qb6 {[%clk 0:02:16]} 11. Be3 {[%clk 0:01:32]}  c4 {[%clk 0:02:09]} 12. Bg5 {[%clk 0:01:24]}  Qxb5 {[%clk 0:02:07]} 13. Na3 {[%clk 0:01:20]}  Qb6 {[%clk 0:02:07]} 14. Rab1 {[%clk 0:01:18]}  a6 {[%clk 0:02:03]} 15. h4 {[%clk 0:01:15]}  h6 {[%clk 0:02:00]} 16. Bf4 {[%clk 0:01:10]}  Qd8 {[%clk 0:02:00]} 17. Qd2 {[%clk 0:01:09]}  Kh7 {[%clk 0:01:59]} 18. h5 {[%clk 0:01:03]}  b5 {[%clk 0:01:58]} 19. g4 {[%clk 0:00:57]}  gxh5 {[%clk 0:01:49]} 20. Kg2 {[%clk 0:00:53]}  f6 {[%clk 0:01:24]} 21. Rh1 {[%clk 0:00:47]}  fxe5 {[%clk 0:01:23]} 22. Nxe5 {[%clk 0:00:46]}  Ndxe5 {[%clk 0:01:19]} 23. Rxh5 {[%clk 0:00:40]}  Nxg4 {[%clk 0:01:08]} 24. f3 {[%clk 0:00:37]}  Qf6 {[%clk 0:01:08]} 25. Qc2+ {[%clk 0:00:12]}  Kg8 {[%clk 0:01:04]} 26. Be5 {[%clk 0:00:00]}  Ne3+ {[%clk 0:00:59]} 0-1


[Site "https://www.chess.com"]

[Event "Titled Tuesday Blitz July 11 Late 2023"]
[White "Yeritsyan, Hayk"]
[Black "Gyulamiryan-koryun"]
[WhiteFideId "13307320"]
[WhiteElo "2519"]
[BlackElo "1858"]
[Result "1-0"]
[Round "1"]
[TimeControl "180+2"]
[Date "2023.07.11"]
[WhiteClock "0:01:15"]
[BlackClock "0:00:00"]
[Board "194"]

1. d4 {[%clk 0:02:56]}  Nf6 {[%clk 0:02:59]} 2. Nf3 {[%clk 0:02:55]}  g6 {[%clk 0:02:58]} 3. Bf4 {[%clk 0:02:55]}  Bg7 {[%clk 0:02:58]} 4. h3 {[%clk 0:02:56]}  O-O {[%clk 0:02:57]} 5. e3 {[%clk 0:02:57]}  d6 {[%clk 0:02:56]} 6. c3 {[%clk 0:02:57]}  Nbd7 {[%clk 0:02:56]} 7. Be2 {[%clk 0:02:58]}  Re8 {[%clk 0:02:56]} 8. O-O {[%clk 0:02:59]}  e5 {[%clk 0:02:53]} 9. dxe5 {[%clk 0:02:59]}  dxe5 {[%clk 0:02:53]} 10. Nxe5 {[%clk 0:03:00]}  Nxe5 {[%clk 0:02:44]} 11. Qxd8 {[%clk 0:03:01]}  Rxd8 {[%clk 0:02:42]} 12. Bxe5 {[%clk 0:03:01]}  c6 {[%clk 0:02:31]} 13. Na3 {[%clk 0:03:01]}  b5 {[%clk 0:02:27]} 14. Nc2 {[%clk 0:02:50]}  Ne4 {[%clk 0:02:12]} 15. Bxg7 {[%clk 0:02:48]}  Kxg7 {[%clk 0:02:11]} 16. Rfd1 {[%clk 0:02:48]}  Bf5 {[%clk 0:02:04]} 17. Nd4 {[%clk 0:02:43]}  Bd7 {[%clk 0:01:59]} 18. Bf3 {[%clk 0:02:41]}  f5 {[%clk 0:01:57]} 19. Bxe4 {[%clk 0:02:41]}  fxe4 {[%clk 0:01:57]} 20. Nb3 {[%clk 0:02:41]}  Be6 {[%clk 0:01:53]} 21. Rd4 {[%clk 0:02:32]}  Bd5 {[%clk 0:01:50]} 22. Rad1 {[%clk 0:02:30]}  Kf6 {[%clk 0:01:41]} 23. Nd2 {[%clk 0:02:07]}  Re8 {[%clk 0:01:31]} 24. b3 {[%clk 0:01:58]}  a5 {[%clk 0:01:30]} 25. c4 {[%clk 0:01:57]}  bxc4 {[%clk 0:01:26]} 26. bxc4 {[%clk 0:01:58]}  Bf7 {[%clk 0:01:19]} 27. Nxe4+ {[%clk 0:01:56]}  Ke5 {[%clk 0:01:18]} 28. f4+ {[%clk 0:01:51]}  Kf5 {[%clk 0:01:14]} 29. Nd6+ {[%clk 0:01:51]}  Ke6 {[%clk 0:01:09]} 30. Nxe8 {[%clk 0:01:44]}  Bxe8 {[%clk 0:01:09]} 31. c5 {[%clk 0:01:41]}  a4 {[%clk 0:01:07]} 32. Rd8 {[%clk 0:01:40]}  Rxd8 {[%clk 0:00:58]} 33. Rxd8 {[%clk 0:01:41]}  Bf7 {[%clk 0:00:46]} 34. a3 {[%clk 0:01:40]}  h5 {[%clk 0:00:40]} 35. g4 {[%clk 0:01:38]}  hxg4 {[%clk 0:00:35]} 36. hxg4 {[%clk 0:01:39]}  Kf6 {[%clk 0:00:31]} 37. Rd6+ {[%clk 0:01:38]}  Kg7 {[%clk 0:00:26]} 38. Rxc6 {[%clk 0:01:38]}  Bd5 {[%clk 0:00:22]} 39. Rd6 {[%clk 0:01:38]}  Bf3 {[%clk 0:00:21]} 40. f5 {[%clk 0:01:34]}  g5 {[%clk 0:00:18]} 41. Rg6+ {[%clk 0:01:28]}  Kf7 {[%clk 0:00:16]} 42. Rxg5 {[%clk 0:01:28]}  Kf6 {[%clk 0:00:14]} 43. Rg6+ {[%clk 0:01:29]}  Ke5 {[%clk 0:00:14]} 44. Re6+ {[%clk 0:01:28]}  Kd5 {[%clk 0:00:14]} 45. g5 {[%clk 0:01:28]}  Kxc5 {[%clk 0:00:12]} 46. e4 {[%clk 0:01:27]}  Bg4 {[%clk 0:00:11]} 47. g6 {[%clk 0:01:27]}  Bh5 {[%clk 0:00:06]} 48. g7 {[%clk 0:01:21]}  Bf7 {[%clk 0:00:05]} 49. Rf6 {[%clk 0:01:15]}  Bb3 {[%clk 0:00:01]} 50. Rf8 {[%clk 0:01:14]}  Kd4 {[%clk 0:00:01]} 51. g8=Q {[%clk 0:01:14]}  Bxg8 {[%clk 0:00:01]} 52. Rxg8 {[%clk 0:01:14]}  Kxe4 {[%clk 0:00:00]} 53. f6 {[%clk 0:01:15]} 1-0


[Site "https://www.chess.com"]

[Event "Titled Tuesday Blitz July 11 Late 2023"]
[White "Erigaisi Arjun"]
[Black "Ganiev, Roman"]
[WhiteFideId "35009192"]
[BlackFideId "4131452"]
[WhiteElo "3096"]
[BlackElo "2605"]
[Result "1-0"]
[Round "2"]
[TimeControl "180+2"]
[Date "2023.07.11"]
[WhiteClock "0:01:39"]
[BlackClock "0:00:02"]
[Board "5"]

1. c4 {[%clk 0:03:00]}  e5 {[%clk 0:02:54]} 2. Nc3 {[%clk 0:03:01]}  Nc6 {[%clk 0:02:54]} 3. Nf3 {[%clk 0:03:02]}  Nf6 {[%clk 0:02:54]} 4. d3 {[%clk 0:03:02]}  Bb4 {[%clk 0:02:54]} 5. Bd2 {[%clk 0:02:59]}  O-O {[%clk 0:02:53]} 6. e3 {[%clk 0:02:58]}  d5 {[%clk 0:02:53]} 7. cxd5 {[%clk 0:02:58]}  Nxd5 {[%clk 0:02:54]} 8. Qc2 {[%clk 0:02:58]}  Re8 {[%clk 0:02:53]} 9. Be2 {[%clk 0:02:58]}  Be6 {[%clk 0:02:48]} 10. O-O {[%clk 0:02:57]}  Qd7 {[%clk 0:02:46]} 11. Ng5 {[%clk 0:02:53]}  Rad8 {[%clk 0:02:35]} 12. Nxe6 {[%clk 0:02:51]}  Qxe6 {[%clk 0:02:35]} 13. Nxd5 {[%clk 0:02:50]}  Qxd5 {[%clk 0:02:33]} 14. Bf3 {[%clk 0:02:45]}  Qc5 {[%clk 0:01:58]} 15. Qxc5 {[%clk 0:02:42]}  Bxc5 {[%clk 0:01:59]} 16. Be4 {[%clk 0:02:32]}  Bb6 {[%clk 0:01:59]} 17. Rfc1 {[%clk 0:02:31]}  Rd6 {[%clk 0:02:00]} 18. Kf1 {[%clk 0:02:31]}  g6 {[%clk 0:01:58]} 19. g4 {[%clk 0:02:31]}  Red8 {[%clk 0:01:55]} 20. Ke2 {[%clk 0:02:31]}  R8d7 {[%clk 0:01:30]} 21. b4 {[%clk 0:02:28]}  Ne7 {[%clk 0:01:18]} 22. g5 {[%clk 0:02:22]}  c6 {[%clk 0:01:06]} 23. a4 {[%clk 0:02:22]}  Nd5 {[%clk 0:01:03]} 24. b5 {[%clk 0:02:20]}  cxb5 {[%clk 0:00:58]} 25. axb5 {[%clk 0:02:21]}  Rd8 {[%clk 0:00:58]} 26. h4 {[%clk 0:02:16]}  R6d7 {[%clk 0:00:58]} 27. Ra3 {[%clk 0:02:13]}  Rc7 {[%clk 0:00:39]} 28. Rc4 {[%clk 0:02:12]}  Rcd7 {[%clk 0:00:30]} 29. Bf3 {[%clk 0:02:07]}  Nc7 {[%clk 0:00:30]} 30. Rb3 {[%clk 0:02:06]}  Ne6 {[%clk 0:00:27]} 31. Bg4 {[%clk 0:02:05]}  Rd6 {[%clk 0:00:26]} 32. Bb4 {[%clk 0:02:05]}  Rd5 {[%clk 0:00:24]} 33. Be7 {[%clk 0:02:03]}  Re8 {[%clk 0:00:21]} 34. Bxe6 {[%clk 0:01:59]}  fxe6 {[%clk 0:00:19]} 35. Bf6 {[%clk 0:01:59]}  Kf7 {[%clk 0:00:16]} 36. e4 {[%clk 0:01:55]}  Rd4 {[%clk 0:00:14]} 37. Bxe5 {[%clk 0:01:55]}  Rxc4 {[%clk 0:00:14]} 38. dxc4 {[%clk 0:01:56]}  Rc8 {[%clk 0:00:15]} 39. Rc3 {[%clk 0:01:53]}  Bc5 {[%clk 0:00:14]} 40. Rd3 {[%clk 0:01:51]}  Ke7 {[%clk 0:00:15]} 41. f4 {[%clk 0:01:47]}  a5 {[%clk 0:00:08]} 42. bxa6 {[%clk 0:01:47]}  bxa6 {[%clk 0:00:09]} 43. h5 {[%clk 0:01:48]}  a5 {[%clk 0:00:08]} 44. hxg6 {[%clk 0:01:47]}  hxg6 {[%clk 0:00:09]} 45. Rh3 {[%clk 0:01:48]}  Kd7 {[%clk 0:00:09]} 46. Rh7+ {[%clk 0:01:43]}  Kc6 {[%clk 0:00:10]} 47. Rg7 {[%clk 0:01:43]}  a4 {[%clk 0:00:09]} 48. Rxg6 {[%clk 0:01:44]}  Re8 {[%clk 0:00:09]} 49. f5 {[%clk 0:01:43]}  a3 {[%clk 0:00:09]} 50. Rxe6+ {[%clk 0:01:41]}  Rxe6 {[%clk 0:00:09]} 51. fxe6 {[%clk 0:01:42]}  a2 {[%clk 0:00:09]} 52. g6 {[%clk 0:01:42]}  Bd6 {[%clk 0:00:08]} 53. Ba1 {[%clk 0:01:41]}  Bf8 {[%clk 0:00:02]} 54. e7 {[%clk 0:01:39]}  Bxe7 {[%clk 0:00:01]} 55. g7 {[%clk 0:01:39]}  Bf6 {[%clk 0:00:02]} 56. Bxf6 {[%clk 0:01:39]} 1-0


[Site "https://www.chess.com"]

[Event "Titled Tuesday Blitz July 11 Late 2023"]
[White "Chen, Justin"]
[Black "Firouzja, Alireza"]
[WhiteFideId "2098199"]
[BlackFideId "12573981"]
[WhiteElo "2604"]
[BlackElo "3086"]
[Result "0-1"]
[Round "2"]
[TimeControl "180+2"]
[Date "2023.07.11"]
[WhiteClock "0:00:00"]
[BlackClock "0:00:42"]
[Board "6"]

1. e4 {[%clk 0:03:00]}  c5 {[%clk 0:03:00]} 2. Nf3 {[%clk 0:03:00]}  d6 {[%clk 0:02:59]} 3. d4 {[%clk 0:03:01]}  cxd4 {[%clk 0:03:00]} 4. Nxd4 {[%clk 0:03:02]}  Nf6 {[%clk 0:03:01]} 5. Nc3 {[%clk 0:03:02]}  a6 {[%clk 0:03:01]} 6. Be3 {[%clk 0:03:03]}  e5 {[%clk 0:03:00]} 7. Nb3 {[%clk 0:03:03]}  Be6 {[%clk 0:02:59]} 8. f3 {[%clk 0:03:04]}  h5 {[%clk 0:02:59]} 9. Qd2 {[%clk 0:03:04]}  Nbd7 {[%clk 0:02:58]} 10. O-O-O {[%clk 0:03:04]}  b5 {[%clk 0:02:58]} 11. Nd5 {[%clk 0:02:47]}  Nxd5 {[%clk 0:02:52]} 12. exd5 {[%clk 0:02:48]}  Bf5 {[%clk 0:02:53]} 13. Bd3 {[%clk 0:02:47]}  Bxd3 {[%clk 0:02:53]} 14. Qxd3 {[%clk 0:02:48]}  Be7 {[%clk 0:02:48]} 15. Kb1 {[%clk 0:02:45]}  Rc8 {[%clk 0:02:42]} 16. Bd2 {[%clk 0:02:38]}  Bg5 {[%clk 0:02:16]} 17. Na5 {[%clk 0:01:40]}  Nc5 {[%clk 0:02:13]} 18. Qe2 {[%clk 0:01:07]}  Bxd2 {[%clk 0:01:58]} 19. Qxd2 {[%clk 0:01:08]}  O-O {[%clk 0:01:58]} 20. h4 {[%clk 0:01:03]}  Re8 {[%clk 0:01:47]} 21. g4 {[%clk 0:00:54]}  hxg4 {[%clk 0:01:42]} 22. fxg4 {[%clk 0:00:54]}  e4 {[%clk 0:01:42]} 23. Nc6 {[%clk 0:00:46]}  e3 {[%clk 0:01:33]} 24. Qe2 {[%clk 0:00:37]}  Qd7 {[%clk 0:01:20]} 25. Rh3 {[%clk 0:00:33]}  Re4 {[%clk 0:01:15]} 26. Rxe3 {[%clk 0:00:30]}  Rce8 {[%clk 0:01:16]} 27. Rxe4 {[%clk 0:00:22]}  Rxe4 {[%clk 0:01:16]} 28. Qh2 {[%clk 0:00:18]}  Qxg4 {[%clk 0:01:15]} 29. Rg1 {[%clk 0:00:18]}  Re2 {[%clk 0:01:13]} 30. Qh1 {[%clk 0:00:13]}  Qc4 {[%clk 0:01:11]} 31. Rc1 {[%clk 0:00:07]}  Ne4 {[%clk 0:01:10]} 32. Ka1 {[%clk 0:00:02]}  Rxc2 {[%clk 0:01:02]} 33. Rxc2 {[%clk 0:00:03]}  Qxc2 {[%clk 0:01:03]} 34. h5 {[%clk 0:00:04]}  Nf2 {[%clk 0:00:57]} 35. Qb1 {[%clk 0:00:01]}  Qe2 {[%clk 0:00:42]} 36. a3 {[%clk 0:00:00]}  Nd3 {[%clk 0:00:42]} 0-1


[Site "https://www.chess.com"]

[Event "Titled Tuesday Blitz July 11 Late 2023"]
[White "Duda, Jan-Krzysztof"]
[Black "NLLO777"]
[WhiteFideId "1170546"]
[WhiteElo "3057"]
[BlackElo "2588"]
[Result "1-0"]
[Round "2"]
[TimeControl "180+2"]
[Date "2023.07.11"]
[WhiteClock "0:00:51"]
[BlackClock "0:00:02"]
[Board "9"]

1. c4 {[%clk 0:03:00]}  Nf6 {[%clk 0:02:59]} 2. d4 {[%clk 0:02:59]}  e6 {[%clk 0:02:58]} 3. Nf3 {[%clk 0:03:00]}  d5 {[%clk 0:02:58]} 4. g3 {[%clk 0:03:00]}  Be7 {[%clk 0:02:57]} 5. Bg2 {[%clk 0:03:01]}  O-O {[%clk 0:02:57]} 6. Nbd2 {[%clk 0:03:00]}  c6 {[%clk 0:02:56]} 7. O-O {[%clk 0:03:00]}  b6 {[%clk 0:02:55]} 8. b3 {[%clk 0:02:55]}  Nbd7 {[%clk 0:02:51]} 9. Bb2 {[%clk 0:02:55]}  Bb7 {[%clk 0:02:50]} 10. Rc1 {[%clk 0:02:49]}  Rc8 {[%clk 0:02:48]} 11. e3 {[%clk 0:02:47]}  Rc7 {[%clk 0:02:47]} 12. Qe2 {[%clk 0:02:48]}  Qb8 {[%clk 0:02:46]} 13. Ne5 {[%clk 0:02:41]}  Nxe5 {[%clk 0:02:44]} 14. dxe5 {[%clk 0:02:42]}  Nd7 {[%clk 0:02:44]} 15. e4 {[%clk 0:02:40]}  dxc4 {[%clk 0:02:29]} 16. Nxc4 {[%clk 0:02:41]}  Rd8 {[%clk 0:02:22]} 17. f4 {[%clk 0:02:38]}  c5 {[%clk 0:02:18]} 18. f5 {[%clk 0:02:35]}  Bg5 {[%clk 0:02:14]} 19. Rcd1 {[%clk 0:02:34]}  Nf8 {[%clk 0:02:14]} 20. Nd6 {[%clk 0:02:33]}  Rcd7 {[%clk 0:02:03]} 21. h4 {[%clk 0:02:32]}  Bh6 {[%clk 0:02:03]} 22. g4 {[%clk 0:02:30]}  exf5 {[%clk 0:01:54]} 23. g5 {[%clk 0:02:28]}  Bxg5 {[%clk 0:01:19]} 24. hxg5 {[%clk 0:02:29]}  fxe4 {[%clk 0:01:10]} 25. Rf5 {[%clk 0:02:27]}  Ne6 {[%clk 0:00:57]} 26. Rdf1 {[%clk 0:02:27]}  Rf8 {[%clk 0:00:57]} 27. Qg4 {[%clk 0:02:14]}  Bd5 {[%clk 0:00:48]} 28. Nxe4 {[%clk 0:02:08]}  Bxe4 {[%clk 0:00:41]} 29. Bxe4 {[%clk 0:02:06]}  Qd8 {[%clk 0:00:34]} 30. Bc1 {[%clk 0:01:59]}  Rd4 {[%clk 0:00:21]} 31. Be3 {[%clk 0:01:57]}  Rd7 {[%clk 0:00:19]} 32. Rxf7 {[%clk 0:01:26]}  Rdxf7 {[%clk 0:00:15]} 33. Qxe6 {[%clk 0:01:11]}  Qd7 {[%clk 0:00:08]} 34. Bd5 {[%clk 0:01:09]}  Qxe6 {[%clk 0:00:07]} 35. Bxe6 {[%clk 0:01:10]}  g6 {[%clk 0:00:07]} 36. b4 {[%clk 0:01:03]}  cxb4 {[%clk 0:00:05]} 37. Bd4 {[%clk 0:01:03]}  a5 {[%clk 0:00:02]} 38. Bxb6 {[%clk 0:00:50]}  Kg7 {[%clk 0:00:02]} 39. Rxf7+ {[%clk 0:00:49]}  Rxf7 {[%clk 0:00:03]} 40. Bxf7 {[%clk 0:00:50]}  Kxf7 {[%clk 0:00:03]} 41. Bxa5 {[%clk 0:00:50]}  Ke6 {[%clk 0:00:04]} 42. Bxb4 {[%clk 0:00:50]}  Kxe5 {[%clk 0:00:04]} 43. a4 {[%clk 0:00:50]}  Kd5 {[%clk 0:00:02]} 44. a5 {[%clk 0:00:50]}  Kc6 {[%clk 0:00:02]} 45. Bd2 {[%clk 0:00:50]}  Kb5 {[%clk 0:00:02]} 46. Kf2 {[%clk 0:00:51]}  Ka6 {[%clk 0:00:01]} 47. Ke3 {[%clk 0:00:51]}  h6 {[%clk 0:00:02]} 48. gxh6 {[%clk 0:00:51]} 1-0


[Site "https://www.chess.com"]

[Event "Titled Tuesday Blitz July 11 Late 2023"]
[White "Grinev, Valeriy"]
[Black "Bluebaum, Matthias"]
[WhiteFideId "14117517"]
[BlackFideId "24651516"]
[WhiteElo "2586"]
[BlackElo "3053"]
[Result "1/2-1/2"]
[Round "2"]
[TimeControl "180+2"]
[Date "2023.07.11"]
[WhiteClock "0:02:11"]
[BlackClock "0:01:41"]
[Board "10"]

1. d4 {[%clk 0:03:00]}  d5 {[%clk 0:03:00]} 2. c4 {[%clk 0:03:01]}  e6 {[%clk 0:03:00]} 3. Nc3 {[%clk 0:03:01]}  Bb4 {[%clk 0:03:01]} 4. cxd5 {[%clk 0:03:00]}  exd5 {[%clk 0:03:01]} 5. Bf4 {[%clk 0:03:00]}  c5 {[%clk 0:03:02]} 6. e3 {[%clk 0:03:00]}  c4 {[%clk 0:03:02]} 7. Be2 {[%clk 0:02:50]}  Nc6 {[%clk 0:03:00]} 8. Nf3 {[%clk 0:02:49]}  Nf6 {[%clk 0:02:59]} 9. O-O {[%clk 0:02:50]}  O-O {[%clk 0:03:00]} 10. Ne5 {[%clk 0:02:49]}  Bf5 {[%clk 0:03:00]} 11. Bf3 {[%clk 0:02:48]}  Bxc3 {[%clk 0:02:55]} 12. bxc3 {[%clk 0:02:48]}  Ne4 {[%clk 0:02:56]} 13. Bxe4 {[%clk 0:02:43]}  Bxe4 {[%clk 0:02:57]} 14. Nxc6 {[%clk 0:02:43]}  bxc6 {[%clk 0:02:57]} 15. Qa4 {[%clk 0:02:43]}  Qb6 {[%clk 0:02:55]} 16. f3 {[%clk 0:02:40]}  Bd3 {[%clk 0:02:56]} 17. Rf2 {[%clk 0:02:39]}  Rfe8 {[%clk 0:02:55]} 18. Qa3 {[%clk 0:02:40]}  a5 {[%clk 0:02:50]} 19. Rb2 {[%clk 0:02:40]}  Qd8 {[%clk 0:02:49]} 20. Re1 {[%clk 0:02:34]}  Qh4 {[%clk 0:02:32]} 21. Bg3 {[%clk 0:02:34]}  Qg5 {[%clk 0:02:30]} 22. Kf2 {[%clk 0:02:31]}  Re7 {[%clk 0:02:15]} 23. Qd6 {[%clk 0:02:15]}  Rae8 {[%clk 0:02:10]} 24. Bf4 {[%clk 0:02:11]}  Qh4+ {[%clk 0:02:05]} 25. Bg3 {[%clk 0:02:11]}  Qg5 {[%clk 0:02:05]} 26. Bf4 {[%clk 0:02:12]}  Qh4+ {[%clk 0:01:53]} 27. Bg3 {[%clk 0:02:11]}  Qg5 {[%clk 0:01:41]} 1/2-1/2


[Site "https://www.chess.com"]

[Event "Titled Tuesday Blitz July 11 Late 2023"]
[White "Janturin, Artur"]
[Black "Martinez Alcantara, Jose Eduardo"]
[WhiteFideId "4130022"]
[BlackFideId "3805662"]
[WhiteElo "2586"]
[BlackElo "3016"]
[Result "0-1"]
[Round "2"]
[TimeControl "180+2"]
[Date "2023.07.11"]
[WhiteClock "0:00:00"]
[BlackClock "0:01:00"]
[Board "11"]

1. e4 {[%clk 0:03:00]}  c5 {[%clk 0:03:00]} 2. Nf3 {[%clk 0:03:01]}  d6 {[%clk 0:03:00]} 3. d4 {[%clk 0:03:01]}  cxd4 {[%clk 0:03:01]} 4. Nxd4 {[%clk 0:03:01]}  a6 {[%clk 0:03:02]} 5. Nc3 {[%clk 0:03:02]}  e6 {[%clk 0:03:03]} 6. Be2 {[%clk 0:02:58]}  b5 {[%clk 0:03:02]} 7. a3 {[%clk 0:02:57]}  Bb7 {[%clk 0:03:03]} 8. O-O {[%clk 0:02:57]}  Nd7 {[%clk 0:03:03]} 9. f4 {[%clk 0:02:53]}  Ngf6 {[%clk 0:03:03]} 10. Bf3 {[%clk 0:02:53]}  Qc7 {[%clk 0:03:02]} 11. Kh1 {[%clk 0:02:38]}  Be7 {[%clk 0:02:49]} 12. Qe1 {[%clk 0:02:36]}  O-O {[%clk 0:02:02]} 13. Qg3 {[%clk 0:02:31]}  Kh8 {[%clk 0:01:39]} 14. Bd2 {[%clk 0:02:03]}  Rad8 {[%clk 0:01:25]} 15. Rae1 {[%clk 0:02:03]}  Nb6 {[%clk 0:01:24]} 16. b3 {[%clk 0:00:18]}  g6 {[%clk 0:01:19]} 17. Qh3 {[%clk 0:00:18]}  e5 {[%clk 0:01:17]} 18. Nde2 {[%clk 0:00:13]}  Nbd7 {[%clk 0:01:17]} 19. Ng3 {[%clk 0:00:09]}  exf4 {[%clk 0:01:16]} 20. Nge2 {[%clk 0:00:06]}  g5 {[%clk 0:01:10]} 21. Nd4 {[%clk 0:00:05]}  Ne5 {[%clk 0:01:06]} 22. Qh6 {[%clk 0:00:03]}  Ng8 {[%clk 0:01:03]} 23. Qh3 {[%clk 0:00:01]}  Bc8 {[%clk 0:01:03]} 24. g4 {[%clk 0:00:00]}  Nf6 {[%clk 0:01:00]} 0-1


[Site "https://www.chess.com"]

[Event "Titled Tuesday Blitz July 11 Late 2023"]
[White "Paravyan, David"]
[Black "Leon Oquendo, Jorge"]
[WhiteFideId "4194985"]
[BlackFideId "3514803"]
[WhiteElo "3014"]
[BlackElo "2580"]
[Result "1-0"]
[Round "2"]
[TimeControl "180+2"]
[Date "2023.07.11"]
[WhiteClock "0:00:13"]
[BlackClock "0:00:00"]
[Board "12"]

1. e4 {[%clk 0:02:58]}  c6 {[%clk 0:02:58]} 2. d4 {[%clk 0:02:58]}  d5 {[%clk 0:02:59]} 3. e5 {[%clk 0:02:57]}  Bf5 {[%clk 0:02:59]} 4. Nf3 {[%clk 0:02:57]}  e6 {[%clk 0:02:58]} 5. Be2 {[%clk 0:02:58]}  h6 {[%clk 0:02:55]} 6. O-O {[%clk 0:02:57]}  Ne7 {[%clk 0:02:55]} 7. a4 {[%clk 0:02:56]}  a5 {[%clk 0:02:53]} 8. Nbd2 {[%clk 0:02:54]}  Nd7 {[%clk 0:02:47]} 9. Nb3 {[%clk 0:02:48]}  g5 {[%clk 0:02:44]} 10. Ne1 {[%clk 0:02:46]}  Bg7 {[%clk 0:02:38]} 11. f4 {[%clk 0:02:45]}  Ng6 {[%clk 0:02:30]} 12. g4 {[%clk 0:02:37]}  Be4 {[%clk 0:02:27]} 13. f5 {[%clk 0:02:37]}  exf5 {[%clk 0:02:18]} 14. gxf5 {[%clk 0:02:36]}  Nh4 {[%clk 0:02:17]} 15. f6 {[%clk 0:02:31]}  Nxf6 {[%clk 0:02:08]} 16. exf6 {[%clk 0:02:29]}  Bxf6 {[%clk 0:02:09]} 17. Nc5 {[%clk 0:02:24]}  Qe7 {[%clk 0:01:54]} 18. Ra3 {[%clk 0:02:19]}  b6 {[%clk 0:01:42]} 19. Nxe4 {[%clk 0:02:17]}  dxe4 {[%clk 0:01:43]} 20. Rh3 {[%clk 0:02:10]}  O-O-O {[%clk 0:01:37]} 21. c3 {[%clk 0:02:08]}  Bg7 {[%clk 0:01:29]} 22. Bg4+ {[%clk 0:02:01]}  Kb7 {[%clk 0:01:27]} 23. Ng2 {[%clk 0:01:41]}  f5 {[%clk 0:01:00]} 24. Nxh4 {[%clk 0:01:19]}  fxg4 {[%clk 0:00:57]} 25. Nf5 {[%clk 0:01:20]}  Qd7 {[%clk 0:00:32]} 26. Qxg4 {[%clk 0:01:18]}  Rde8 {[%clk 0:00:28]} 27. Ne3 {[%clk 0:01:12]}  Qc7 {[%clk 0:00:22]} 28. Bd2 {[%clk 0:00:58]}  Ka6 {[%clk 0:00:14]} 29. Nf5 {[%clk 0:00:56]}  Rhf8 {[%clk 0:00:13]} 30. Re3 {[%clk 0:00:54]}  Qd7 {[%clk 0:00:10]} 31. Rxe4 {[%clk 0:00:52]}  h5 {[%clk 0:00:10]} 32. Qe2+ {[%clk 0:00:52]}  Kb7 {[%clk 0:00:10]} 33. Nxg7 {[%clk 0:00:41]}  Rxe4 {[%clk 0:00:10]} 34. Qxe4 {[%clk 0:00:40]}  Rxf1+ {[%clk 0:00:10]} 35. Kxf1 {[%clk 0:00:41]}  Qxg7 {[%clk 0:00:09]} 36. Qf5 {[%clk 0:00:40]}  g4 {[%clk 0:00:09]} 37. Qxh5 {[%clk 0:00:26]}  Qf6+ {[%clk 0:00:09]} 38. Kg1 {[%clk 0:00:25]}  Qf3 {[%clk 0:00:08]} 39. Qe5 {[%clk 0:00:24]}  Qd1+ {[%clk 0:00:07]} 40. Be1 {[%clk 0:00:22]}  Qxa4 {[%clk 0:00:07]} 41. Qe2 {[%clk 0:00:16]}  Qa1 {[%clk 0:00:05]} 42. Kg2 {[%clk 0:00:15]}  a4 {[%clk 0:00:05]} 43. Kg3 {[%clk 0:00:15]}  Qb1 {[%clk 0:00:00]} 44. Bf2 {[%clk 0:00:13]} 1-0


[Site "https://www.chess.com"]